{"text_format":"3","workbook":"xlsx","n_sheets":2,"sheets":["Personalschema","Inställningar"],"not_rendered":{"defined_names":22},"read":"whole","date_system":"1900"}

{"sheet":"Personalschema","index":0,"n_rows":296,"n_cols":21,"rows_kept":296,"merged":[[6,1,6,9],[66,1,66,9],[126,1,126,9],[186,1,186,9],[246,1,246,9]]}
["Skiftschema för medarbetare"]
[]
[null,"SUMMA:",null,{"$f":"SUM(4:4)","v":{"v":56,"d":"56.00"}}]
[null,"TIDER:",null,8,8,8,8,8,8,8,{"v":0,"d":"0.00"},{"v":0,"d":"0.00"},{"v":0,"d":"0.00"},{"v":0,"d":"0.00"},{"v":0,"d":"0.00"},{"v":0,"d":"0.00"},{"v":0,"d":"0.00"},{"v":0,"d":"0.00"},{"v":0,"d":"0.00"},{"v":0,"d":"0.00"},{"v":0,"d":"0.00"}]
[null,"ANSTÄLLD:",null,"Hasselberg, J","Larsson, K","Lund, M","Larsson, K","Grauner, T","Hasselgren, B","Lidman, A"]
[]
[null,"2012-07-16T09:00:00"]
[null,{"$f":"B7","v":41106.375},{"$nulls":5},"Semester"]
[null,":15",null,"Kassa",{"$nulls":3},"Semester"]
[null,":30",null,"Kassa",{"$nulls":3},"Semester"]
[null,":45",null,"Kassa","Föreståndare",null,"Kundtjänst","Semester"]
[null,{"$f":"Periodvisning_PåSlaget","v":"10:00"},null,"Kassa","Föreståndare",null,"Kundtjänst","Semester"]
[null,":15",null,"Kassa","Föreståndare",null,"Kundtjänst","Semester"]
[null,":30",null,"Kassa","Föreståndare",null,"Kundtjänst","Semester","Bokföring"]
[null,":45",null,"Kassa","Föreståndare",null,"Kundtjänst","Semester","Bokföring","Vaktmästare"]
[null,{"$f":"Periodvisning_PåSlaget","v":"11:00"},null,"Kassa","Föreståndare",null,"Kundtjänst","Semester","Bokföring","Vaktmästare"]
[null,":15",null,"Kassa","Föreståndare","Guide","Kundtjänst","Semester","Bokföring","Vaktmästare"]
[null,":30",null,"Kassa","Rast","Guide","Kundtjänst","Semester","Bokföring","Vaktmästare"]
[null,":45",null,"Lunch","Föreståndare","Guide","Kundtjänst","Semester","Bokföring","Vaktmästare"]
[null,{"$f":"Periodvisning_PåSlaget","v":"12:00"},null,"Lunch","Föreståndare","Guide","Kundtjänst","Semester","Bokföring","Vaktmästare"]
[null,":15",null,"Kassa","Föreståndare","Guide","Kundtjänst","Semester","Rast","Vaktmästare"]
[null,":30",null,"Kassa","Föreståndare","Rast","Kundtjänst","Semester","Telefoni","Rast"]
[null,":45",null,"Kassa","Föreståndare","Guide","Kundtjänst","Semester","Telefoni","Vaktmästare"]
[null,{"$f":"Periodvisning_PåSlaget","v":"13:00"},null,"Kassa","Föreståndare","Guide","Kundtjänst","Semester","Telefoni","Vaktmästare"]
[null,":15",null,"Kassa","Föreståndare","Guide","Lunch","Semester","Telefoni","Vaktmästare"]
[null,":30",null,null,"Föreståndare","Guide","Lunch","Semester","Telefoni","Vaktmästare"]
[null,":45",null,null,"Föreståndare","Guide","Lunch","Semester","Lunch","Vaktmästare"]
[null,{"$f":"Periodvisning_PåSlaget","v":"14:00"},null,"Kassör","Lunch","Guide","Lunch","Semester","Lunch","Vaktmästare"]
[null,":15",null,"Kassör","Lunch","Guide","Kundtjänst","Semester","Telefoni","Vaktmästare"]
[null,":30",null,"Kassör","Lunch","Lunch","Kundtjänst","Semester","Telefoni","Lunch"]
[null,":45",null,"Kassör","Lunch","Lunch","Kundtjänst","Semester","Telefoni","Lunch"]
[null,{"$f":"Periodvisning_PåSlaget","v":"15:00"},null,"Kassör","Säkerhet","Lunch","Kundtjänst","Semester","Telefoni","Lunch"]
[null,":15",null,"Kassör","Säkerhet","Lunch","Kundtjänst","Semester","Telefoni","Lunch"]
[null,":30",null,"Kassör","Säkerhet","Guide","Kundtjänst","Semester","Telefoni","Stäng"]
[null,":45",null,"Kassör","Säkerhet","Guide","Kundtjänst","Semester","Telefoni","Stäng"]
[null,{"$f":"Periodvisning_PåSlaget","v":"16:00"},null,"Kassör","Säkerhet","Guide","Kundtjänst","Semester","Rast","Stäng"]
[null,":15",null,"Rast","Säkerhet","Guide","Rast","Semester","Telefoni","Stäng"]
[null,":30",null,"Kassör","Säkerhet","Guide","Kundtjänst","Semester","Telefoni","Stäng"]
[null,":45",null,"Kassör","Säkerhet","Guide","Kundtjänst","Semester","Telefoni","Stäng"]
[null,{"$f":"Periodvisning_PåSlaget","v":"17:00"},null,"Kassör","Säkerhet","Guide","Kundtjänst",null,"Telefoni","Stäng"]
[null,":15",null,"Kassör","Säkerhet","Guide","Kundtjänst",null,"Telefoni","Stäng"]
[null,":30",null,"Kassör","Säkerhet","Guide","Kundtjänst",null,"Telefoni","Stäng"]
[null,":45",null,"Kassör","Säkerhet","Guide","Kundtjänst",null,"Telefoni","Stäng"]
[null,{"$f":"Periodvisning_PåSlaget","v":"18:00"},null,"Kassör","Säkerhet","Guide","Kundtjänst",null,"Telefoni","Stäng"]
[null,":15",null,"Kassör","Säkerhet","Guide","Kundtjänst",null,"Telefoni","Stäng"]
[null,":30",null,null,"Säkerhet","Guide","Kundtjänst",null,"Telefoni","Stäng"]
[null,":45",null,null,"Säkerhet","Rast","Kundtjänst",null,"Telefoni","Rast"]
[null,{"$f":"Periodvisning_PåSlaget","v":"19:00"},{"$nulls":3},"Guide",null,null,"Telefoni","Stäng"]
[null,":15",{"$nulls":3},"Guide",null,null,"Telefoni","Stäng"]
[null,":30",{"$nulls":3},"Guide",{"$nulls":3},"Stäng"]
[null,":45",{"$nulls":3},"Guide",{"$nulls":3},"Stäng"]
[null,{"$f":"Periodvisning_PåSlaget","v":"20:00"},{"$nulls":3},"Guide",{"$nulls":3},"Stäng"]
[null,":15",{"$nulls":3},"Guide"]
[null,":30",{"$nulls":3},"Guide"]
[null,":45"]
[null,{"$f":"Periodvisning_PåSlaget","v":"21:00"}]
[]
[]
[]
[]
["Schema för anställda"]
[]
[null,"SUMMA:",null,{"$f":"SUM(64:64)","v":{"v":56,"d":"56.00"}}]
[null,"TIDER:",null,8,8,8,8,8,8,8,{"v":0,"d":"0.00"},{"v":0,"d":"0.00"},{"v":0,"d":"0.00"},{"v":0,"d":"0.00"},{"v":0,"d":"0.00"},{"v":0,"d":"0.00"},{"v":0,"d":"0.00"},{"v":0,"d":"0.00"},{"v":0,"d":"0.00"},{"v":0,"d":"0.00"},{"v":0,"d":"0.00"}]
[null,"ANSTÄLLD:",null,"Hasselberg, J","Larsson, K","Lund, M","Letzén, J","Grauner, T","Hasselgren, B","Lidman, A"]
[]
[null,{"$f":"B7+1","v":"2012-07-17T09:00:00"}]
[null,{"$f":"B67","v":41107.375},{"$nulls":5},"Semester"]
[null,":15",null,"Kassa",{"$nulls":3},"Semester"]
[null,":30",null,"Kassa",{"$nulls":3},"Semester"]
[null,":45",null,"Kassa","Föreståndare",null,"Kundtjänst","Semester"]
[null,{"$f":"Periodvisning_PåSlaget","v":"01:00"},null,"Kassa","Föreståndare",null,"Kundtjänst","Semester"]
[null,":15",null,"Kassa","Föreståndare",null,"Kundtjänst","Semester"]
[null,":30",null,"Kassa","Föreståndare",null,"Kundtjänst","Semester","Bokföring"]
[null,":45",null,"Kassa","Föreståndare",null,"Kundtjänst","Semester","Bokföring","Vaktmästare"]
[null,{"$f":"Periodvisning_PåSlaget","v":"02:00"},null,"Kassa","Föreståndare",null,"Kundtjänst","Semester","Bokföring","Vaktmästare"]
[null,":15",null,"Kassa","Föreståndare","Guide","Kundtjänst","Semester","Bokföring","Vaktmästare"]
[null,":30",null,"Kassa","Rast","Guide","Kundtjänst","Semester","Bokföring","Vaktmästare"]
[null,":45",null,"Lunch","Föreståndare","Guide","Kundtjänst","Semester","Bokföring","Vaktmästare"]
[null,{"$f":"Periodvisning_PåSlaget","v":"03:00"},null,"Lunch","Föreståndare","Guide","Kundtjänst","Semester","Bokföring","Vaktmästare"]
[null,":15",null,"Kassa","Föreståndare","Guide","Kundtjänst","Semester","Rast","Vaktmästare"]
[null,":30",null,"Kassa","Föreståndare","Rast","Kundtjänst","Semester","Telefoni","Rast"]
[null,":45",null,"Kassa","Föreståndare","Guide","Kundtjänst","Semester","Telefoni","Vaktmästare"]
[null,{"$f":"Periodvisning_PåSlaget","v":"04:00"},null,"Kassa","Föreståndare","Guide","Kundtjänst","Semester","Telefoni","Vaktmästare"]
[null,":15",null,"Kassa","Föreståndare","Guide","Lunch","Semester","Telefoni","Vaktmästare"]
[null,":30",null,null,"Föreståndare","Guide","Lunch","Semester","Telefoni","Vaktmästare"]
[null,":45",null,null,"Föreståndare","Guide","Lunch","Semester","Lunch","Vaktmästare"]
[null,{"$f":"Periodvisning_PåSlaget","v":"05:00"},null,"Kassör","Lunch","Guide","Lunch","Semester","Lunch","Vaktmästare"]
[null,":15",null,"Kassör","Lunch","Guide","Kundtjänst","Semester","Telefoni","Vaktmästare"]
[null,":30",null,"Kassör","Lunch","Lunch","Kundtjänst","Semester","Telefoni","Lunch"]
[null,":45",null,"Kassör","Lunch","Lunch","Kundtjänst","Semester","Telefoni","Lunch"]
[null,{"$f":"Periodvisning_PåSlaget","v":"06:00"},null,"Kassör","Säkerhet","Lunch","Kundtjänst","Semester","Telefoni","Lunch"]
[null,":15",null,"Kassör","Säkerhet","Lunch","Kundtjänst","Semester","Telefoni","Lunch"]
[null,":30",null,"Kassör","Säkerhet","Guide","Kundtjänst","Semester","Telefoni","Stäng"]
[null,":45",null,"Kassör","Säkerhet","Guide","Kundtjänst","Semester","Telefoni","Stäng"]
[null,{"$f":"Periodvisning_PåSlaget","v":"07:00"},null,"Kassör","Säkerhet","Guide","Kundtjänst","Semester","Rast","Stäng"]
[null,":15",null,"Rast","Säkerhet","Guide","Rast","Semester","Telefoni","Stäng"]
[null,":30",null,"Kassör","Säkerhet","Guide","Kundtjänst","Semester","Telefoni","Stäng"]
[null,":45",null,"Kassör","Säkerhet","Guide","Kundtjänst","Semester","Telefoni","Stäng"]
[null,{"$f":"Periodvisning_PåSlaget","v":"08:00"},null,"Kassör","Säkerhet","Guide","Kundtjänst",null,"Telefoni","Stäng"]
[null,":15",null,"Kassör","Säkerhet","Guide","Kundtjänst",null,"Telefoni","Stäng"]
[null,":30",null,"Kassör","Säkerhet","Guide","Kundtjänst",null,"Telefoni","Stäng"]
[null,":45",null,"Kassör","Säkerhet","Guide","Kundtjänst",null,"Telefoni","Stäng"]
[null,{"$f":"Periodvisning_PåSlaget","v":"09:00"},null,"Kassör","Säkerhet","Guide","Kundtjänst",null,"Telefoni","Stäng"]
[null,":15",null,"Kassör","Säkerhet","Guide","Kundtjänst",null,"Telefoni","Stäng"]
[null,":30",null,null,"Säkerhet","Guide","Kundtjänst",null,"Telefoni","Stäng"]
[null,":45",null,null,"Säkerhet","Rast","Kundtjänst",null,"Telefoni","Rast"]
[null,{"$f":"Periodvisning_PåSlaget","v":"10:00"},{"$nulls":3},"Guide",null,null,"Telefoni","Stäng"]
[null,":15",{"$nulls":3},"Guide",null,null,"Telefoni","Stäng"]
[null,":30",{"$nulls":3},"Guide",{"$nulls":3},"Stäng"]
[null,":45",{"$nulls":3},"Guide",{"$nulls":3},"Stäng"]
[null,{"$f":"Periodvisning_PåSlaget","v":"11:00"},{"$nulls":3},"Guide",{"$nulls":3},"Stäng"]
[null,":15",{"$nulls":3},"Guide"]
[null,":30",{"$nulls":3},"Guide"]
[null,":45"]
[null,{"$f":"Periodvisning_PåSlaget","v":"12:00"}]
[]
[]
[]
[]
["Schema för anställda"]
[]
[null,"SUMMA:",null,{"$f":"SUM(124:124)","v":{"v":56,"d":"56.00"}}]
[null,"TIDER:",null,8,8,8,8,8,8,8,{"v":0,"d":"0.00"},{"v":0,"d":"0.00"},{"v":0,"d":"0.00"},{"v":0,"d":"0.00"},{"v":0,"d":"0.00"},{"v":0,"d":"0.00"},{"v":0,"d":"0.00"},{"v":0,"d":"0.00"},{"v":0,"d":"0.00"},{"v":0,"d":"0.00"},{"v":0,"d":"0.00"}]
[null,"ANSTÄLLD:",null,"Hasselberg, J","Larsson, K","Lund, M","Letzén, J","Grauner, T","Hasselgren, B","Lidman, A"]
[]
[null,{"$f":"B67+1","v":"2012-07-18T09:00:00"}]
[null,{"$f":"B127","v":41108.375},{"$nulls":5},"Semester"]
[null,":15",null,"Kassa",{"$nulls":3},"Semester"]
[null,":30",null,"Kassa",{"$nulls":3},"Semester"]
[null,":45",null,"Kassa","Föreståndare",null,"Kundtjänst","Semester"]
[null,{"$f":"Periodvisning_PåSlaget","v":"16:00"},null,"Kassa","Föreståndare",null,"Kundtjänst","Semester"]
[null,":15",null,"Kassa","Föreståndare",null,"Kundtjänst","Semester"]
[null,":30",null,"Kassa","Föreståndare",null,"Kundtjänst","Semester","Bokföring"]
[null,":45",null,"Kassa","Föreståndare",null,"Kundtjänst","Semester","Bokföring","Vaktmästare"]
[null,{"$f":"Periodvisning_PåSlaget","v":"17:00"},null,"Kassa","Föreståndare",null,"Kundtjänst","Semester","Bokföring","Vaktmästare"]
[null,":15",null,"Kassa","Föreståndare","Guide","Kundtjänst","Semester","Bokföring","Vaktmästare"]
[null,":30",null,"Kassa","Rast","Guide","Kundtjänst","Semester","Bokföring","Vaktmästare"]
[null,":45",null,"Lunch","Föreståndare","Guide","Kundtjänst","Semester","Bokföring","Vaktmästare"]
[null,{"$f":"Periodvisning_PåSlaget","v":"18:00"},null,"Lunch","Föreståndare","Guide","Kundtjänst","Semester","Bokföring","Vaktmästare"]
[null,":15",null,"Kassa","Föreståndare","Guide","Kundtjänst","Semester","Rast","Vaktmästare"]
[null,":30",null,"Kassa","Föreståndare","Rast","Kundtjänst","Semester","Telefoni","Rast"]
[null,":45",null,"Kassa","Föreståndare","Guide","Kundtjänst","Semester","Telefoni","Vaktmästare"]
[null,{"$f":"Periodvisning_PåSlaget","v":"19:00"},null,"Kassa","Föreståndare","Guide","Kundtjänst","Semester","Telefoni","Vaktmästare"]
[null,":15",null,"Kassa","Föreståndare","Guide","Lunch","Semester","Telefoni","Vaktmästare"]
[null,":30",null,null,"Föreståndare","Guide","Lunch","Semester","Telefoni","Vaktmästare"]
[null,":45",null,null,"Föreståndare","Guide","Lunch","Semester","Lunch","Vaktmästare"]
[null,{"$f":"Periodvisning_PåSlaget","v":"20:00"},null,"Kassör","Lunch","Guide","Lunch","Semester","Lunch","Vaktmästare"]
[null,":15",null,"Kassör","Lunch","Guide","Kundtjänst","Semester","Telefoni","Vaktmästare"]
[null,":30",null,"Kassör","Lunch","Lunch","Kundtjänst","Semester","Telefoni","Lunch"]
[null,":45",null,"Kassör","Lunch","Lunch","Kundtjänst","Semester","Telefoni","Lunch"]
[null,{"$f":"Periodvisning_PåSlaget","v":"21:00"},null,"Kassör","Säkerhet","Lunch","Kundtjänst","Semester","Telefoni","Lunch"]
[null,":15",null,"Kassör","Säkerhet","Lunch","Kundtjänst","Semester","Telefoni","Lunch"]
[null,":30",null,"Kassör","Säkerhet","Guide","Kundtjänst","Semester","Telefoni","Stäng"]
[null,":45",null,"Kassör","Säkerhet","Guide","Kundtjänst","Semester","Telefoni","Stäng"]
[null,{"$f":"Periodvisning_PåSlaget","v":"22:00"},null,"Kassör","Säkerhet","Guide","Kundtjänst","Semester","Rast","Stäng"]
[null,":15",null,"Rast","Säkerhet","Guide","Rast","Semester","Telefoni","Stäng"]
[null,":30",null,"Kassör","Säkerhet","Guide","Kundtjänst","Semester","Telefoni","Stäng"]
[null,":45",null,"Kassör","Säkerhet","Guide","Kundtjänst","Semester","Telefoni","Stäng"]
[null,{"$f":"Periodvisning_PåSlaget","v":"23:00"},null,"Kassör","Säkerhet","Guide","Kundtjänst",null,"Telefoni","Stäng"]
[null,":15",null,"Kassör","Säkerhet","Guide","Kundtjänst",null,"Telefoni","Stäng"]
[null,":30",null,"Kassör","Säkerhet","Guide","Kundtjänst",null,"Telefoni","Stäng"]
[null,":45",null,"Kassör","Säkerhet","Guide","Kundtjänst",null,"Telefoni","Stäng"]
[null,{"$f":"Periodvisning_PåSlaget","v":"00:00"},null,"Kassör","Säkerhet","Guide","Kundtjänst",null,"Telefoni","Stäng"]
[null,":15",null,"Kassör","Säkerhet","Guide","Kundtjänst",null,"Telefoni","Stäng"]
[null,":30",null,null,"Säkerhet","Guide","Kundtjänst",null,"Telefoni","Stäng"]
[null,":45",null,null,"Säkerhet","Rast","Kundtjänst",null,"Telefoni","Rast"]
[null,{"$f":"Periodvisning_PåSlaget","v":"01:00"},{"$nulls":3},"Guide",null,null,"Telefoni","Stäng"]
[null,":15",{"$nulls":3},"Guide",null,null,"Telefoni","Stäng"]
[null,":30",{"$nulls":3},"Guide",{"$nulls":3},"Stäng"]
[null,":45",{"$nulls":3},"Guide",{"$nulls":3},"Stäng"]
[null,{"$f":"Periodvisning_PåSlaget","v":"02:00"},{"$nulls":3},"Guide",{"$nulls":3},"Stäng"]
[null,":15",{"$nulls":3},"Guide"]
[null,":30",{"$nulls":3},"Guide"]
[null,":45"]
[null,{"$f":"Periodvisning_PåSlaget","v":"03:00"}]
[]
[]
[]
[]
["Schema för anställda"]
[]
[null,"SUMMA:",null,{"$f":"SUM(184:184)","v":{"v":56,"d":"56.00"}}]
[null,"TIDER:",null,8,8,8,8,8,8,8,{"v":0,"d":"0.00"},{"v":0,"d":"0.00"},{"v":0,"d":"0.00"},{"v":0,"d":"0.00"},{"v":0,"d":"0.00"},{"v":0,"d":"0.00"},{"v":0,"d":"0.00"},{"v":0,"d":"0.00"},{"v":0,"d":"0.00"},{"v":0,"d":"0.00"},{"v":0,"d":"0.00"}]
[null,"ANSTÄLLD:",null,"Hasselberg, J","Larsson, K","Lund, M","Letzén, J","Grauner, T","Hasselgren, B","Lidman, A"]
[]
[null,{"$f":"B127+1","v":"2012-07-19T09:00:00"}]
[null,{"$f":"B187","v":41109.375},{"$nulls":5},"Semester"]
[null,":15",null,"Kassa",{"$nulls":3},"Semester"]
[null,":30",null,"Kassa",{"$nulls":3},"Semester"]
[null,":45",null,"Kassa","Föreståndare",null,"Kundtjänst","Semester"]
[null,{"$f":"Periodvisning_PåSlaget","v":"07:00"},null,"Kassa","Föreståndare",null,"Kundtjänst","Semester"]
[null,":15",null,"Kassa","Föreståndare",null,"Kundtjänst","Semester"]
[null,":30",null,"Kassa","Föreståndare",null,"Kundtjänst","Semester","Bokföring"]
[null,":45",null,"Kassa","Föreståndare",null,"Kundtjänst","Semester","Bokföring","Vaktmästare"]
[null,{"$f":"Periodvisning_PåSlaget","v":"08:00"},null,"Kassa","Föreståndare",null,"Kundtjänst","Semester","Bokföring","Vaktmästare"]
[null,":15",null,"Kassa","Föreståndare","Guide","Kundtjänst","Semester","Bokföring","Vaktmästare"]
[null,":30",null,"Kassa","Rast","Guide","Kundtjänst","Semester","Bokföring","Vaktmästare"]
[null,":45",null,"Lunch","Föreståndare","Guide","Kundtjänst","Semester","Bokföring","Vaktmästare"]
[null,{"$f":"Periodvisning_PåSlaget","v":"09:00"},null,"Lunch","Föreståndare","Guide","Kundtjänst","Semester","Bokföring","Vaktmästare"]
[null,":15",null,"Kassa","Föreståndare","Guide","Kundtjänst","Semester","Rast","Vaktmästare"]
[null,":30",null,"Kassa","Föreståndare","Rast","Kundtjänst","Semester","Telefoni","Rast"]
[null,":45",null,"Kassa","Föreståndare","Guide","Kundtjänst","Semester","Telefoni","Vaktmästare"]
[null,{"$f":"Periodvisning_PåSlaget","v":"10:00"},null,"Kassa","Föreståndare","Guide","Kundtjänst","Semester","Telefoni","Vaktmästare"]
[null,":15",null,"Kassa","Föreståndare","Guide","Lunch","Semester","Telefoni","Vaktmästare"]
[null,":30",null,null,"Föreståndare","Guide","Lunch","Semester","Telefoni","Vaktmästare"]
[null,":45",null,null,"Föreståndare","Guide","Lunch","Semester","Lunch","Vaktmästare"]
[null,{"$f":"Periodvisning_PåSlaget","v":"11:00"},null,"Kassör","Lunch","Guide","Lunch","Semester","Lunch","Vaktmästare"]
[null,":15",null,"Kassör","Lunch","Guide","Kundtjänst","Semester","Telefoni","Vaktmästare"]
[null,":30",null,"Kassör","Lunch","Lunch","Kundtjänst","Semester","Telefoni","Lunch"]
[null,":45",null,"Kassör","Lunch","Lunch","Kundtjänst","Semester","Telefoni","Lunch"]
[null,{"$f":"Periodvisning_PåSlaget","v":"12:00"},null,"Kassör","Säkerhet","Lunch","Kundtjänst","Semester","Telefoni","Lunch"]
[null,":15",null,"Kassör","Säkerhet","Lunch","Kundtjänst","Semester","Telefoni","Lunch"]
[null,":30",null,"Kassör","Säkerhet","Guide","Kundtjänst","Semester","Telefoni","Stäng"]
[null,":45",null,"Kassör","Säkerhet","Guide","Kundtjänst","Semester","Telefoni","Stäng"]
[null,{"$f":"Periodvisning_PåSlaget","v":"13:00"},null,"Kassör","Säkerhet","Guide","Kundtjänst","Semester","Rast","Stäng"]
[null,":15",null,"Rast","Säkerhet","Guide","Rast","Semester","Telefoni","Stäng"]
[null,":30",null,"Kassör","Säkerhet","Guide","Kundtjänst","Semester","Telefoni","Stäng"]
[null,":45",null,"Kassör","Säkerhet","Guide","Kundtjänst","Semester","Telefoni","Stäng"]
[null,{"$f":"Periodvisning_PåSlaget","v":"14:00"},null,"Kassör","Säkerhet","Guide","Kundtjänst",null,"Telefoni","Stäng"]
[null,":15",null,"Kassör","Säkerhet","Guide","Kundtjänst",null,"Telefoni","Stäng"]
[null,":30",null,"Kassör","Säkerhet","Guide","Kundtjänst",null,"Telefoni","Stäng"]
[null,":45",null,"Kassör","Säkerhet","Guide","Kundtjänst",null,"Telefoni","Stäng"]
[null,{"$f":"Periodvisning_PåSlaget","v":"15:00"},null,"Kassör","Säkerhet","Guide","Kundtjänst",null,"Telefoni","Stäng"]
[null,":15",null,"Kassör","Säkerhet","Guide","Kundtjänst",null,"Telefoni","Stäng"]
[null,":30",null,null,"Säkerhet","Guide","Kundtjänst",null,"Telefoni","Stäng"]
[null,":45",null,null,"Säkerhet","Rast","Kundtjänst",null,"Telefoni","Rast"]
[null,{"$f":"Periodvisning_PåSlaget","v":"16:00"},{"$nulls":3},"Guide",null,null,"Telefoni","Stäng"]
[null,":15",{"$nulls":3},"Guide",null,null,"Telefoni","Stäng"]
[null,":30",{"$nulls":3},"Guide",{"$nulls":3},"Stäng"]
[null,":45",{"$nulls":3},"Guide",{"$nulls":3},"Stäng"]
[null,{"$f":"Periodvisning_PåSlaget","v":"17:00"},{"$nulls":3},"Guide",{"$nulls":3},"Stäng"]
[null,":15",{"$nulls":3},"Guide"]
[null,":30",{"$nulls":3},"Guide"]
[null,":45"]
[null,{"$f":"Periodvisning_PåSlaget","v":"18:00"}]
[]
[]
[]
[]
["Schema för anställda"]
[]
[null,"SUMMA:",null,{"$f":"SUM(244:244)","v":{"v":56,"d":"56.00"}}]
[null,"TIDER:",null,8,8,8,8,8,8,8,{"v":0,"d":"0.00"},{"v":0,"d":"0.00"},{"v":0,"d":"0.00"},{"v":0,"d":"0.00"},{"v":0,"d":"0.00"},{"v":0,"d":"0.00"},{"v":0,"d":"0.00"},{"v":0,"d":"0.00"},{"v":0,"d":"0.00"},{"v":0,"d":"0.00"},{"v":0,"d":"0.00"}]
[null,"ANSTÄLLD:",null,"Hasselberg, J","Larsson, K","Lund, M","Letzén, J","Grauner, T","Hasselgren, B","Lidman, A"]
[]
[null,{"$f":"B187+1","v":"2012-07-20T09:00:00"}]
[null,{"$f":"B247","v":41110.375},{"$nulls":5},"Semester"]
[null,":15",null,"Kassa",{"$nulls":3},"Semester"]
[null,":30",null,"Kassa",{"$nulls":3},"Semester"]
[null,":45",null,"Kassa","Föreståndare",null,"Kundtjänst","Semester"]
[null,{"$f":"Periodvisning_PåSlaget","v":"22:00"},null,"Kassa","Föreståndare",null,"Kundtjänst","Semester"]
[null,":15",null,"Kassa","Föreståndare",null,"Kundtjänst","Semester"]
[null,":30",null,"Kassa","Föreståndare",null,"Kundtjänst","Semester","Bokföring"]
[null,":45",null,"Kassa","Föreståndare",null,"Kundtjänst","Semester","Bokföring","Vaktmästare"]
[null,{"$f":"Periodvisning_PåSlaget","v":"23:00"},null,"Kassa","Föreståndare",null,"Kundtjänst","Semester","Bokföring","Vaktmästare"]
[null,":15",null,"Kassa","Föreståndare","Guide","Kundtjänst","Semester","Bokföring","Vaktmästare"]
[null,":30",null,"Kassa","Rast","Guide","Kundtjänst","Semester","Bokföring","Vaktmästare"]
[null,":45",null,"Lunch","Föreståndare","Guide","Kundtjänst","Semester","Bokföring","Vaktmästare"]
[null,{"$f":"Periodvisning_PåSlaget","v":"00:00"},null,"Lunch","Föreståndare","Guide","Kundtjänst","Semester","Bokföring","Vaktmästare"]
[null,":15",null,"Kassa","Föreståndare","Guide","Kundtjänst","Semester","Rast","Vaktmästare"]
[null,":30",null,"Kassa","Föreståndare","Rast","Kundtjänst","Semester","Telefoni","Rast"]
[null,":45",null,"Kassa","Föreståndare","Guide","Kundtjänst","Semester","Telefoni","Vaktmästare"]
[null,{"$f":"Periodvisning_PåSlaget","v":"01:00"},null,"Kassa","Föreståndare","Guide","Kundtjänst","Semester","Telefoni","Vaktmästare"]
[null,":15",null,"Kassa","Föreståndare","Guide","Lunch","Semester","Telefoni","Vaktmästare"]
[null,":30",null,null,"Föreståndare","Guide","Lunch","Semester","Telefoni","Vaktmästare"]
[null,":45",null,null,"Föreståndare","Guide","Lunch","Semester","Lunch","Vaktmästare"]
[null,{"$f":"Periodvisning_PåSlaget","v":"02:00"},null,"Kassör","Lunch","Guide","Lunch","Semester","Lunch","Vaktmästare"]
[null,":15",null,"Kassör","Lunch","Guide","Kundtjänst","Semester","Telefoni","Vaktmästare"]
[null,":30",null,"Kassör","Lunch","Lunch","Kundtjänst","Semester","Telefoni","Lunch"]
[null,":45",null,"Kassör","Lunch","Lunch","Kundtjänst","Semester","Telefoni","Lunch"]
[null,{"$f":"Periodvisning_PåSlaget","v":"03:00"},null,"Kassör","Säkerhet","Lunch","Kundtjänst","Semester","Telefoni","Lunch"]
[null,":15",null,"Kassör","Säkerhet","Lunch","Kundtjänst","Semester","Telefoni","Lunch"]
[null,":30",null,"Kassör","Säkerhet","Guide","Kundtjänst","Semester","Telefoni","Stäng"]
[null,":45",null,"Kassör","Säkerhet","Guide","Kundtjänst","Semester","Telefoni","Stäng"]
[null,{"$f":"Periodvisning_PåSlaget","v":"04:00"},null,"Kassör","Säkerhet","Guide","Kundtjänst","Semester","Rast","Stäng"]
[null,":15",null,"Rast","Säkerhet","Guide","Rast","Semester","Telefoni","Stäng"]
[null,":30",null,"Kassör","Säkerhet","Guide","Kundtjänst","Semester","Telefoni","Stäng"]
[null,":45",null,"Kassör","Säkerhet","Guide","Kundtjänst","Semester","Telefoni","Stäng"]
[null,{"$f":"Periodvisning_PåSlaget","v":"05:00"},null,"Kassör","Säkerhet","Guide","Kundtjänst",null,"Telefoni","Stäng"]
[null,":15",null,"Kassör","Säkerhet","Guide","Kundtjänst",null,"Telefoni","Stäng"]
[null,":30",null,"Kassör","Säkerhet","Guide","Kundtjänst",null,"Telefoni","Stäng"]
[null,":45",null,"Kassör","Säkerhet","Guide","Kundtjänst",null,"Telefoni","Stäng"]
[null,{"$f":"Periodvisning_PåSlaget","v":"06:00"},null,"Kassör","Säkerhet","Guide","Kundtjänst",null,"Telefoni","Stäng"]
[null,":15",null,"Kassör","Säkerhet","Guide","Kundtjänst",null,"Telefoni","Stäng"]
[null,":30",null,null,"Säkerhet","Guide","Kundtjänst",null,"Telefoni","Stäng"]
[null,":45",null,null,"Säkerhet","Rast","Kundtjänst",null,"Telefoni","Rast"]
[null,{"$f":"Periodvisning_PåSlaget","v":"07:00"},{"$nulls":3},"Guide",null,null,"Telefoni","Stäng"]
[null,":15",{"$nulls":3},"Guide",null,null,"Telefoni","Stäng"]
[null,":30",{"$nulls":3},"Guide",{"$nulls":3},"Stäng"]
[null,":45",{"$nulls":3},"Guide",{"$nulls":3},"Stäng"]
[null,{"$f":"Periodvisning_PåSlaget","v":"08:00"},{"$nulls":3},"Guide",{"$nulls":3},"Stäng"]
[null,":15",{"$nulls":3},"Guide"]
[null,":30",{"$nulls":3},"Guide"]
[null,":45"]
[null,{"$f":"Periodvisning_PåSlaget","v":"09:00"}]

{"sheet":"Inställningar","index":1,"n_rows":26,"n_cols":7,"rows_kept":26}
[null,"Installation"]
[]
[]
[null,"ÖKNINGAR FÖR\nINMATNINGAR PER TIMME",4]
[]
[]
[]
[]
[]
[null,"Anställda",null,"Position/Tid av","Färg","Betalda","Hela dagen"]
[null,"Hasselberg, J",null,"Lunch",1,"FALSKT","FALSKT"]
[null,"Grauner, T",null,"Rast",1,"FALSKT","FALSKT"]
[null,"Hasselgren, B",null,"Av",1,"FALSKT","SANT"]
[null,"Hedlund, M",null,"Sjukfrånvaro",1,"FALSKT","SANT"]
[null,"Larsson, K",null,"Personlig dag",1,"SANT","SANT"]
[null,"Letzén, J",null,"Semester",1,"SANT","SANT"]
[null,"Lidman, A",null,"Kassa",2,"SANT","FALSKT"]
[null,"Lund, M",null,"Kassör",3,"SANT","FALSKT"]
[{"$nulls":3},"Föreståndare",4,"SANT","FALSKT"]
[{"$nulls":3},"Guide",5,"SANT","FALSKT"]
[{"$nulls":3},"Kundtjänst",6,"SANT","FALSKT"]
[{"$nulls":3},"Telefoni",7,"SANT","FALSKT"]
[{"$nulls":3},"Säkerhet",8,"SANT","FALSKT"]
[{"$nulls":3},"Vaktmästare",9,"SANT","FALSKT"]
[{"$nulls":3},"Bokföring",10,"SANT","FALSKT"]
[{"$nulls":3},"Stäng",11,"SANT","FALSKT"]